{"text_format":"1","workbook":"xlsx","n_sheets":9,"sheets":["Analyse BES Études faisabilité","Analyse de profession","Norme, PAMT ou hors PAMT","RCMO","Promotion Normes","Formation","Compagnon independant","SOMMAIRE","Instructions"],"not_rendered":{"charts":0,"images":0,"macros":0,"external_links":0,"defined_names":4,"comments":0,"pivot_tables":0},"unopened":[],"bounds":{"document_bytes":16777216,"sheet_cells":100000,"rows_first":2000,"rows_last":500,"rows_between":2000,"halvings":0,"cell_chars":16384,"cell_head_chars":4096},"cells_cut":0,"cells_raw":0,"read":"whole","date_system":"1900"}

{"sheet":"Analyse BES Études faisabilité","index":0,"n_rows":33,"n_cols":9,"rows_kept":33,"cut":false,"hidden":false,"merged":[[0,0,0,8]]}
["Budget de la demande de subvention - Titre du projet"]
[]
["Nature de la dépense","Description de la dépense","Coût unitaire","Unité","Unité","Unité","Taxes (100 % des taxes)","Montant demandé","Montant proposé"]
["Production d'une analyse de besoins ou d'une étude de faisabilité "]
["Honoraires professionnels pour la planification et la réalisation d'une analyse de besoin ou d'une étude de faisabilité, la rédaction et la validation de la documentation produite",null,null,null,null,null,{"$f":"0.14975*(C5*D5*E5*F5)","v":0},{"$f":"+C5*D5*E5*F5","v":0},{"$f":"+C5*D5*E5*F5","v":0}]
["Honoraires professionnels pour la planification et la réalisation d'une actualisation, la rédaction et la validation du rapport",null,null,null,null,null,{"$f":"0.14975*(C6*D6*E6*F6)","v":0},{"$f":"+C6*D6*E6*F6","v":0},0]
["Salaires compensatoires des experts",null,null,null,null,null,null,{"$f":"+C7*D7*E7*F7","v":0},0]
["Déplacement"]
["Déplacement des experts",null,null,null,null,null,null,{"$f":"+C9*D9*E9*F9","v":0},{"$f":"+C9*D9*E9*F9","v":0}]
["Déplacement du consultant",null,null,null,null,null,null,0,0]
["Déplacement du chargé de projets",null,null,null,null,null,null,0,0]
["Autres frais de déplacement (à spécifier)",null,null,null,null,null,{"$f":"0.14975*(C12*D12*E12*F12)","v":0},0,0]
["Autres frais de déplacement (à spécifier)",null,null,null,null,null,{"$f":"0.14975*(C13*D13*E13*F13)","v":0},0,0]
["Hébergement"]
["Hébergement des experts",null,null,null,null,null,{"$f":"0.14975*(C15*D15*E15*F15)","v":0},{"$f":"+C15*D15*E15*F15","v":0},{"$f":"+C15*D15*E15*F15","v":0}]
["Hébergement des consultants",null,null,null,null,null,{"$f":"0.14975*(C16*D16*E16*F16)","v":0},{"$f":"+C16*D16*E16*F16","v":0},{"$f":"+C16*D16*E16*F16","v":0}]
["Hébergement du chargé de projets",null,null,null,null,null,{"$f":"0.14975*(C17*D17*E17*F17)","v":0},{"$f":"+C17*D17*E17*F17","v":0},0]
["Autres frais d'hébergement (à spécifier)",null,null,null,null,null,{"$f":"0.14975*(C18*D18*E18*F18)","v":0},{"$f":"+C18*D18*E18*F18","v":0},{"$f":"+C18*D18*E18*F18","v":0}]
["Matériel"]
["Révision linguistique de l'analyse ou de l'étude ",null,null,null,null,null,{"$f":"0.14975*(C20*D20*E20*F20)","v":0},{"$f":"+C20*D20*E20*F20","v":0},{"$f":"+C20*D20*E20*F20","v":0}]
["Frais d'impression",null,null,null,null,null,{"$f":"0.14975*(C21*D21*E21*F21)","v":0},{"$f":"+C21*D21*E21*F21","v":0},{"$f":"+C21*D21*E21*F21","v":0}]
["Frais de graphisme",null,null,null,null,null,{"$f":"0.14975*(C22*D22*E22*F22)","v":0},{"$f":"+C22*D22*E22*F22","v":0},{"$f":"+C22*D22*E22*F22","v":0}]
["Autres frais de matériel (à spécifier)",null,null,null,null,null,{"$f":"0.14975*(C23*D23*E23*F23)","v":0},{"$f":"+C23*D23*E23*F23","v":0},{"$f":"+C23*D23*E23*F23","v":0}]
["Autres dépenses liées à la réalisation du projet "]
["Location de salle incluant le matériel audiovisuel",null,null,null,null,null,{"$f":"0.14975*(C25*D25*E25*F25)","v":0},{"$f":"+C25*D25*E25*F25","v":0},{"$f":"+C25*D25*E25*F25","v":0}]
["Location d'équipements",null,null,null,null,null,0,{"$f":"+C26*D26*E26*F26","v":0},0]
["Autres dépenses (à spécifier)",null,null,null,null,null,0,{"$f":"+C27*D27*E27*F27","v":0},0]
["Dépenses liées à l'administration du projet par le promoteur"]
["Salaire de base du chargé de projets",null,null,null,null,null,null,{"$f":"+C29*D29*E29*F29","v":0},{"$f":"+C29*D29*E29*F29","v":0}]
["Remboursement de 50 % des taxes admissibles",null,null,null,null,null,null,{"$f":"0.5*SUM(G5:G29)","v":0},{"$f":"0.5*SUM(G4:G29)","v":0}]
["Total partiel",null,null,null,null,null,null,{"$f":"SUM(H5:H30)","v":0},{"$f":"SUM(I4:I30)","v":0}]
["Frais d'administration (maximum 10 % du montant admissible)",null,null,null,null,null,null,{"$f":"+H31*0.1","v":0},{"$f":"+I31*0.1","v":0}]
["Total",null,null,null,null,null,null,{"$f":"H31+H32","v":0},{"$f":"I31+I32","v":0}]

{"sheet":"Analyse de profession","index":1,"n_rows":33,"n_cols":9,"rows_kept":33,"cut":false,"hidden":false,"merged":[[0,0,0,8]]}
["Budget de la demande de subvention - Titre du projet"]
[]
["Nature de la dépense","Description de la dépense","Coût unitaire","Unité","Unité","Unité","Taxes (100 % des taxes)","Montant demandé","Montant proposé"]
["Élaboration ou révision d'une  analyse de profession "]
["Honoraires professionnels pour la planification et la réalisation d'une nouvelle analyse, la rédaction et la validation du rapport",null,null,null,null,null,{"$f":"0.14975*(C5*D5*E5*F5)","v":0},{"$f":"+C5*D5*E5*F5","v":0},{"$f":"+C5*D5*E5*F5","v":0}]
["Honoraires professionnels pour la planification et la réalisation d'une actualisation, la rédaction et la validation du rapport",null,null,null,null,null,{"$f":"0.14975*(C6*D6*E6*F6)","v":0},{"$f":"+C6*D6*E6*F6","v":0},0]
["Salaires compensatoires des experts",null,null,null,null,null,null,{"$f":"+C7*D7*E7*F7","v":0},0]
["Déplacement"]
["Déplacement des experts",null,null,null,null,null,null,{"$f":"+C9*D9*E9*F9","v":0},{"$f":"+C9*D9*E9*F9","v":0}]
["Déplacement des consultants",null,null,null,null,null,null,0,0]
["Déplacement du chargé de projets",null,null,null,null,null,null,0,0]
["Autres frais de déplacement (à spécifier)",null,null,null,null,null,{"$f":"0.14975*(C12*D12*E12*F12)","v":0},0,0]
["Autres frais de déplacement (à spécifier)",null,null,null,null,null,{"$f":"0.14975*(C13*D13*E13*F13)","v":0},0,0]
["Hébergement"]
["Hébergement des experts",null,null,null,null,null,{"$f":"0.14975*(C15*D15*E15*F15)","v":0},{"$f":"+C15*D15*E15*F15","v":0},{"$f":"+C15*D15*E15*F15","v":0}]
["Hébergement des consultants",null,null,null,null,null,{"$f":"0.14975*(C16*D16*E16*F16)","v":0},{"$f":"+C16*D16*E16*F16","v":0},{"$f":"+C16*D16*E16*F16","v":0}]
["Hébergement du chargé de projets",null,null,null,null,null,{"$f":"0.14975*(C17*D17*E17*F17)","v":0},{"$f":"+C17*D17*E17*F17","v":0},0]
["Autres frais d'hébergement (à spécifier)",null,null,null,null,null,{"$f":"0.14975*(C18*D18*E18*F18)","v":0},{"$f":"+C18*D18*E18*F18","v":0},{"$f":"+C18*D18*E18*F18","v":0}]
["Matériel"]
["Révision linguistique du rapport",null,null,null,null,null,{"$f":"0.14975*(C20*D20*E20*F20)","v":0},{"$f":"+C20*D20*E20*F20","v":0},{"$f":"+C20*D20*E20*F20","v":0}]
["Frais d'impression",null,null,null,null,null,{"$f":"0.14975*(C21*D21*E21*F21)","v":0},{"$f":"+C21*D21*E21*F21","v":0},{"$f":"+C21*D21*E21*F21","v":0}]
["Autres frais de matériel (à spécifier)",null,null,null,null,null,{"$f":"0.14975*(C22*D22*E22*F22)","v":0},{"$f":"+C22*D22*E22*F22","v":0},{"$f":"+C22*D22*E22*F22","v":0}]
["Autres frais de matériel (à spécifier)",null,null,null,null,null,{"$f":"0.14975*(C23*D23*E23*F23)","v":0},{"$f":"+C23*D23*E23*F23","v":0},{"$f":"+C23*D23*E23*F23","v":0}]
["Autres dépenses liées à la réalisation du projet "]
["Location de salle incluant le matériel audiovisuel",null,null,null,null,null,{"$f":"0.14975*(C25*D25*E25*F25)","v":0},{"$f":"+C25*D25*E25*F25","v":0},{"$f":"+C25*D25*E25*F25","v":0}]
["Location d'équipements",null,null,null,null,null,0,{"$f":"+C26*D26*E26*F26","v":0},0]
["Autres dépenses (à spécifier)",null,null,null,null,null,0,{"$f":"+C27*D27*E27*F27","v":0},0]
["Dépenses liées à l'administration du projet par le promoteur"]
["Salaire de base du chargé de projets",null,null,null,null,null,null,{"$f":"+C29*D29*E29*F29","v":0},{"$f":"+C29*D29*E29*F29","v":0}]
["Remboursement de 50 % des taxes admissibles",null,null,null,null,null,null,{"$f":"0.5*SUM(G5:G29)","v":0},{"$f":"0.5*SUM(G4:G29)","v":0}]
["Total partiel",null,null,null,null,null,null,{"$f":"SUM(H5:H30)","v":0},{"$f":"SUM(I4:I30)","v":0}]
["Frais d'administration (maximum 10 % du montant admissible)",null,null,null,null,null,null,{"$f":"+H31*0.1","v":0},{"$f":"+I31*0.1","v":0}]
["Total",null,null,null,null,null,null,{"$f":"H31+H32","v":0},{"$f":"I31+I32","v":0}]

{"sheet":"Norme, PAMT ou hors PAMT","index":2,"n_rows":50,"n_cols":9,"rows_kept":50,"cut":false,"hidden":false,"merged":[[0,0,0,8]]}
["Budget de la demande de subvention - Titre du projet"]
[]
["Nature de la dépense","Description de la dépense","Coût unitaire","Unité","Unité","Unité","Taxes (100 % des taxes)","Montant demandé","Montant proposé"]
["Élaboration ou révision du profil de compétences, validation du profil"]
["Honoraires professionnels pour l'analyse de la documentation et l'élaboration du profil",null,null,null,null,null,{"$f":"0.14975*(C5*D5*E5*F5)","v":0},{"$f":"+C5*D5*E5*F5","v":0},{"$f":"+C5*D5*E5*F5","v":0}]
["Honoraires professionnels pour la validation du profil et la rédaction finale",null,null,null,null,null,{"$f":"0.14975*(C6*D6*E6*F6)","v":0},{"$f":"+C6*D6*E6*F6","v":0},{"$f":"+C6*D6*E6*F6","v":0}]
["Salaires compensatoires des experts ",null,null,null,null,null,null,{"$f":"+C7*D7*E7*F7","v":0},0]
["Élaboration ou révision de la norme professionnelle et consensus sectoriel"]
["Honoraires professionnels pour la rédaction de la norme",null,null,null,null,null,{"$f":"0.14975*(C9*D9*E9*F9)","v":0},{"$f":"+C9*D9*E9*F9","v":0},{"$f":"+C9*D9*E9*F9","v":0}]
["Honoraires professionnels pour le consensus sectoriel",null,null,null,null,null,{"$f":"0.14975*(C10*D10*E10*F10)","v":0},{"$f":"+C10*D10*E10*F10","v":0},0]
["Salaires compensatoires des experts ",null,null,null,null,null,null,{"$f":"+C11*D11*E11*F11","v":0},0]
["Élaboration ou révision des outils du PAMT"]
["Honoraires professionnels pour l'élaboration ou la révision du carnet d'apprentissage et du guide du compagnon",null,null,null,null,null,{"$f":"0.14975*(C13*D13*E13*F13)","v":0},{"$f":"+C13*D13*E13*F13","v":0},{"$f":"+C13*D13*E13*F13","v":0}]
["Honoraires professionnels pour la validation des outils et  rédaction finale",null,null,null,null,null,{"$f":"0.14975*(C14*D14*E14*F14)","v":0},{"$f":"+C14*D14*E14*F14","v":0},0]
["Salaires compensatoires des experts ",null,null,null,null,null,null,{"$f":"+C15*D15*E15*F15","v":0},0]
["Élaboration ou révision des outils hors PAMT ou hors production"]
["Honoraires professionnels pour l'élaboration ou la révision des outils hors PAMT ou hors production",null,null,null,null,null,{"$f":"0.14975*(C17*D17*E17*F17)","v":0},{"$f":"+C17*D17*E17*F17","v":0},{"$f":"+C17*D17*E17*F17","v":0}]
["Honoraires professionnels pour la validation des outils hors PAMT ou hors production et la rédaction finale",null,null,null,null,null,{"$f":"0.14975*(C18*D18*E18*F18)","v":0},{"$f":"+C18*D18*E18*F18","v":0},0]
["Salaires compensatoires des experts ",null,null,null,null,null,null,{"$f":"+C19*D19*E19*F19","v":0},0]
["Déplacement"]
["Déplacement des experts",null,null,null,null,null,null,{"$f":"+C21*D21*E21*F21","v":0},{"$f":"+C21*D21*E21*F21","v":0}]
["Déplacement du consultant",null,null,null,null,null,null,0,0]
["Déplacement du chargé de projets",null,null,null,null,null,null,0,0]
["Autres frais de déplacement (à spécifier)",null,null,null,null,null,{"$f":"0.14975*(C24*D24*E24*F24)","v":0},0,0]
["Autres frais de déplacement (à spécifier)",null,null,null,null,null,{"$f":"0.14975*(C25*D25*E25*F25)","v":0},0,0]
["Hébergement"]
["Hébergement des experts",null,null,null,null,null,{"$f":"0.14975*(C27*D27*E27*F27)","v":0},{"$f":"+C27*D27*E27*F27","v":0},{"$f":"+C27*D27*E27*F27","v":0}]
["Hébergement du consultant",null,null,null,null,null,{"$f":"0.14975*(C28*D28*E28*F28)","v":0},{"$f":"+C28*D28*E28*F28","v":0},{"$f":"+C28*D28*E28*F28","v":0}]
["Hébergement du chargé de projets",null,null,null,null,null,{"$f":"0.14975*(C29*D29*E29*F29)","v":0},{"$f":"+C29*D29*E29*F29","v":0},{"$f":"+C29*D29*E29*F29","v":0}]
["Autres frais d'hébergement (à spécifier)",null,null,null,null,null,{"$f":"0.14975*(C30*D30*E30*F30)","v":0},{"$f":"+C30*D30*E30*F30","v":0},{"$f":"+C30*D30*E30*F30","v":0}]
["Matériel didactique hors PAMT ou hors production"]
["Révision linguistique ",null,null,null,null,null,{"$f":"0.14975*(C32*D32*E32*F32)","v":0},{"$f":"+C32*D32*E32*F32","v":0},{"$f":"+C32*D32*E32*F32","v":0}]
["Graphisme",null,null,null,null,null,0,{"$f":"+C33*D33*E33*F33","v":0},0]
["Frais d'infographie ",null,null,null,null,null,0,null,0]
["Frais d'impression ",null,null,null,null,null,0,{"$f":"+C35*D35*E35*F35","v":0},{"$f":"+C35*D35*E35*F35","v":0}]
["Autres frais liés au matériel didactique (à spécifier)",null,null,null,null,null,0,{"$f":"+C36*D36*E36*F36","v":0},0]
["Autres frais liés au matériel didactique (à spécifier)",null,null,null,null,null,0,{"$f":"+C37*D37*E37*F37","v":0},{"$f":"+C37*D37*E37*F37","v":0}]
["Autres frais liés au matériel didactique (à spécifier)",null,null,null,null,null,0,0,0]
["Autres dépenses liées à la réalisation du projet "]
["Location de salle incluant le matériel audiovisuel",null,null,null,null,null,{"$f":"0.14975*(C40*D40*E40*F40)","v":0},{"$f":"+C40*D40*E40*F40","v":0},{"$f":"+C40*D40*E40*F40","v":0}]
["Location d'équipements",null,null,null,null,null,0,{"$f":"+C41*D41*E41*F41","v":0},0]
["Autres dépenses (à spécifier)",null,null,null,null,null,0,{"$f":"+C42*D42*E42*F42","v":0},0]
["Autres dépenses (à spécifier)",null,null,null,null,null,{"$f":"0.14975*(C43*D43*E43*F43)","v":0},{"$f":"+C43*D43*E43*F43","v":0},{"$f":"+C43*D43*E43*F43","v":0}]
["Autres dépenses (à spécifier)",null,null,null,null,null,0,{"$f":"+C44*D44*E44*F44","v":0},0]
["Dépenses liées à l'administration du projet par le promoteur"]
["Salaire de base du chargé de projets",null,null,null,null,null,null,{"$f":"+C46*D46*E46*F46","v":0},{"$f":"+C46*D46*E46*F46","v":0}]
["Remboursement de 50 % des taxes admissibles",null,null,null,null,null,null,{"$f":"0.5*SUM(G5:G46)","v":0},{"$f":"0.5*SUM(G5:G46)","v":0}]
["Total partiel",null,null,null,null,null,null,{"$f":"SUM(H5:H47)","v":0},{"$f":"SUM(I5:I47)","v":0}]
["Frais d'administration (maximum 10 % du montant admissible)",null,null,null,null,null,null,{"$f":"+H48*0.1","v":0},{"$f":"+I48*0.1","v":0}]
["Total",null,null,null,null,null,null,{"$f":"H48+H49","v":0},{"$f":"I48+I49","v":0}]

{"sheet":"RCMO","index":3,"n_rows":53,"n_cols":9,"rows_kept":53,"cut":false,"hidden":false,"merged":[[0,0,0,8]]}
["Budget de la demande de subvention - Titre du projet"]
[]
["Nature de la dépense","Description de la dépense","Coût unitaire","Unité","Unité","Unité","Taxes (100 % des taxes)","Montant demandé","Montant proposé"]
["Élaboration ou révision des outils RCMO et validation des outils"]
["Honoraires professionnels pour l'élaboration des outils RCMO",null,null,null,null,null,{"$f":"0.14975*(C5*D5*E5*F5)","v":0},{"$f":"+C5*D5*E5*F5","v":0},{"$f":"+C5*D5*E5*F5","v":0}]
["Honoraires professionnels pour la révision des outils RCMO",null,null,null,null,null,{"$f":"0.14975*(C6*D6*E6*F6)","v":0},{"$f":"+C6*D6*E6*F6","v":0},{"$f":"+C6*D6*E6*F6","v":0}]
["Honoraires professionnels pour la validation des outils et la rédaction finale",null,null,null,null,null,{"$f":"0.14975*(C7*D7*E7*F7)","v":0},{"$f":"+C7*D7*E7*F7","v":0},{"$f":"+C7*D7*E7*F7","v":0}]
["Salaires compensatoires des experts ",null,null,null,null,null,null,{"$f":"+C8*D8*E8*F8","v":0},0]
["Formation des évaluateurs"]
["Honoraires professionnels pour la formation des évaluateurs",null,null,null,null,null,{"$f":"0.14975*(C10*D10*E10*F10)","v":0},{"$f":"+C10*D10*E10*F10","v":0},{"$f":"+C10*D10*E10*F10","v":0}]
["Salaire de base des nouveaux évaluateurs",null,null,null,null,null,null,{"$f":"+C11*D11*E11*F11","v":0},{"$f":"+C11*D11*E11*F11","v":0}]
["Évaluation des compétences des candidats"]
["Honoraires professionnels - Évaluation théorique",null,null,null,null,null,{"$f":"0.14975*(C13*D13*E13*F13)","v":0},{"$f":"+C13*D13*E13*F13","v":0},{"$f":"+C13*D13*E13*F13","v":0}]
["Honoraires professionnels - Évaluation pratique",null,null,null,null,null,{"$f":"0.14975*(C14*D14*E14*F14)","v":0},0,0]
["Honoraires professionnels - Autres modes d'évaluation (à spécifier)",null,null,null,null,null,{"$f":"0.14975*(C15*D15*E15*F15)","v":0},0,0]
["Salaire de base des participants - Évaluation théorique",null,null,null,null,null,null,0,{"$f":"+C16*D16*E16*F16","v":0}]
["Salaire de base des participants - Évaluation pratique",null,null,null,null,null,null,0,0]
["Salaire de base des participants - Autres modes d'évaluation",null,null,null,null,null,null,0,0]
["Déplacement"]
["Déplacement des experts",null,null,null,null,null,null,{"$f":"+C20*D20*E20*F20","v":0},{"$f":"+C20*D20*E20*F20","v":0}]
["Déplacement du évaluateurs",null,null,null,null,null,null,0,0]
["Déplacement des candidats évalués ",null,null,null,null,null,null,0,0]
["Déplacement du chargé de projets",null,null,null,null,null,null,0,0]
["Autres frais de déplacement (à spécifier)",null,null,null,null,null,{"$f":"0.14975*(C24*D24*E24*F24)","v":0},0,0]
["Autres frais de déplacement (à spécifier)",null,null,null,null,null,{"$f":"0.14975*(C25*D25*E25*F25)","v":0},0,0]
["Hébergement"]
["Hébergement des experts",null,null,null,null,null,{"$f":"0.14975*(C27*D27*E27*F27)","v":0},{"$f":"+C27*D27*E27*F27","v":0},{"$f":"+C27*D27*E27*F27","v":0}]
["Hébergement des évaluateurs",null,null,null,null,null,{"$f":"0.14975*(C28*D28*E28*F28)","v":0},{"$f":"+C28*D28*E28*F28","v":0},{"$f":"+C28*D28*E28*F28","v":0}]
["Hébergement des candidats évalués ",null,null,null,null,null,{"$f":"0.14975*(C29*D29*E29*F29)","v":0},{"$f":"+C29*D29*E29*F29","v":0},0]
["Hébergement du chargé de projets",null,null,null,null,null,{"$f":"0.14975*(C30*D30*E30*F30)","v":0},{"$f":"+C30*D30*E30*F30","v":0},0]
["Autres frais d'hébergement (à spécifier)",null,null,null,null,null,{"$f":"0.14975*(C31*D31*E31*F31)","v":0},{"$f":"+C31*D31*E31*F31","v":0},0]
["Matériel d'évaluation, achat de matières premières, etc."]
["Révision linguistique",null,null,null,null,null,{"$f":"0.14975*(C33*D33*E33*F33)","v":0},{"$f":"+C33*D33*E33*F33","v":0},{"$f":"+C33*D33*E33*F33","v":0}]
["Graphisme",null,null,null,null,null,0,0,0]
["Frais d'infographie",null,null,null,null,null,0,0,0]
["Frais d'impression",null,null,null,null,null,0,0,{"$f":"+C36*D36*E36*F36","v":0}]
["Achat de matières premières",null,null,null,null,null,0,0,{"$f":"+C37*D37*E37*F37","v":0}]
["Autres frais de matériel (à spécifier)",null,null,null,null,null,0,0,0]
["Autres frais de matériel (à spécifier)",null,null,null,null,null,0,0,0]
["Autres dépenses liées à la réalisation du projet "]
["Location de salle incluant le matériel audiovisuel",null,null,null,null,null,{"$f":"0.14975*(C41*D41*E41*F41)","v":0},{"$f":"+C41*D41*E41*F41","v":0},{"$f":"+C41*D41*E41*F41","v":0}]
["Location d'équipements ou de matériel",null,null,null,null,null,{"$f":"0.14975*(C42*D42*E42*F42)","v":0},{"$f":"+C42*D42*E42*F42","v":0},{"$f":"+C42*D42*E42*F42","v":0}]
["Honoraires professionnels d'un interprète pour l'évaluation de personnes malentendantes",null,null,null,null,null,0,{"$f":"+C43*D43*E43*F43","v":0},0]
["Honoraires professionnels d’un accompagnateur pour l'évaluation de personnes malentendantes",null,null,null,null,null,0,0,0]
["Les frais encourus pour l’adaptation du matériel\nd'évaluation selon la nature du handicap",null,null,null,null,null,{"$f":"0.14975*(C45*D45*E45*F45)","v":0},{"$f":"+C45*D45*E45*F45","v":0},{"$f":"+C45*D45*E45*F45","v":0}]
["Autres dépenses (à spécifier)",null,null,null,null,null,0,0,0]
["Autres dépenses (à spécifier)",null,null,null,null,null,0,0,0]
["Dépenses liées à l'administration du projet par le promoteur"]
["Salaire de base du chargé de projets",null,null,null,null,null,null,{"$f":"+C49*D49*E49*F49","v":0},{"$f":"+C49*D49*E49*F49","v":0}]
["Remboursement de 50 % des taxes admissibles",null,null,null,null,null,null,{"$f":"0.5*SUM(G5:G49)","v":0},{"$f":"0.5*SUM(G5:G49)","v":0}]
["Total partiel",null,null,null,null,null,null,{"$f":"SUM(H5:H50)","v":0},{"$f":"SUM(I5:I50)","v":0}]
["Frais d'administration (maximum 10 % du montant admissible)",null,null,null,null,null,null,{"$f":"+H51*0.1","v":0},{"$f":"+I51*0.1","v":0}]
["Total",null,null,null,null,null,null,{"$f":"H51+H52","v":0},{"$f":"I51+I52","v":0}]

{"sheet":"Promotion Normes","index":4,"n_rows":44,"n_cols":9,"rows_kept":44,"cut":false,"hidden":false,"merged":[[0,0,0,8]]}
["Budget de la demande de subvention - Titre du projet"]
[]
["Nature de la dépense","Description de la dépense","Coût unitaire","Unité","Unité","Unité","Taxes (100 % des taxes)","Montant demandé","Montant proposé"]
["Élaboration ou adaptation des outils de promotion"]
["Honoraires professionnels (à spécifier)",null,null,null,null,null,{"$f":"0.14975*(C5*D5*E5*F5)","v":0},{"$f":"+C5*D5*E5*F5","v":0},{"$f":"+C5*D5*E5*F5","v":0}]
["Honoraires professionnels (à spécifier)",null,null,null,null,null,0,0,{"$f":"+C6*D6*E6*F6","v":0}]
["Honoraires professionnels (à spécifier)",null,null,null,null,null,0,0,{"$f":"+C7*D7*E7*F7","v":0}]
["Honoraires professionnels (à spécifier)",null,null,null,null,null,0,0,0]
["Honoraires professionnels (à spécifier)",null,null,null,null,null,0,{"$f":"+C9*D9*E9*F9","v":0},{"$f":"+C9*D9*E9*F9","v":0}]
["Salaires compensatoires des experts ",null,null,null,null,null,null,0,0]
["Diffusion"]
["Placement dans les réseaux sociaux",null,null,null,null,null,{"$f":"0.14975*(C12*D12*E12*F12)","v":0},{"$f":"+C12*D12*E12*F12","v":0},{"$f":"+C12*D12*E12*F12","v":0}]
["Placement dans les médias traditionnels",null,null,null,null,null,{"$f":"0.14975*(C13*D13*E13*F13)","v":0},{"$f":"+C13*D13*E13*F13","v":0},0]
["Participation à des événements (à spécifier)",null,null,null,null,null,{"$f":"0.14975*(C14*D14*E14*F14)","v":0},{"$f":"+C14*D14*E14*F14","v":0},0]
["Autres dépenses liées à la diffusion (à spécifier)",null,null,null,null,null,{"$f":"0.14975*(C15*D15*E15*F15)","v":0},{"$f":"+C15*D15*E15*F15","v":0},{"$f":"+C15*D15*E15*F15","v":0}]
["Autres dépenses liées à la diffusion (à spécifier)",null,null,null,null,null,{"$f":"0.14975*(C16*D16*E16*F16)","v":0},{"$f":"+C16*D16*E16*F16","v":0},0]
["Déplacement"]
["Déplacement des experts",null,null,null,null,null,null,{"$f":"+C18*D18*E18*F18","v":0},{"$f":"+C18*D18*E18*F18","v":0}]
["Déplacement du chargé de projets",null,null,null,null,null,null,0,0]
["Autres frais de déplacement (à spécifier)",null,null,null,null,null,{"$f":"0.14975*(C20*D20*E20*F20)","v":0},{"$f":"+C20*D20*E20*F20","v":0},{"$f":"+C20*D20*E20*F20","v":0}]
["Autres frais de déplacement (à spécifier)",null,null,null,null,null,{"$f":"0.14975*(C21*D21*E21*F21)","v":0},0,0]
["Autres frais de déplacement (à spécifier)",null,null,null,null,null,{"$f":"0.14975*(C22*D22*E22*F22)","v":0},0,0]
["Hébergement"]
["Hébergement des experts ",null,null,null,null,null,{"$f":"0.14975*(C24*D24*E24*F24)","v":0},{"$f":"+C24*D24*E24*F24","v":0},{"$f":"+C24*D24*E24*F24","v":0}]
["Hébergement du chargé de projets",null,null,null,null,null,{"$f":"0.14975*(C25*D25*E25*F25)","v":0},{"$f":"+C25*D25*E25*F25","v":0},{"$f":"+C25*D25*E25*F25","v":0}]
["Autres frais d'hébergement (à spécifier)",null,null,null,null,null,{"$f":"0.14975*(C26*D26*E26*F26)","v":0},{"$f":"+C26*D26*E26*F26","v":0},0]
["Matériel de promotion"]
["Matériel de promotion (à spécifier)",null,null,null,null,null,{"$f":"0.14975*(C28*D28*E28*F28)","v":0},{"$f":"+C28*D28*E28*F28","v":0},{"$f":"+C28*D28*E28*F28","v":0}]
["Révision linguistique",null,null,null,null,null,0,0,{"$f":"+C29*D29*E29*F29","v":0}]
["Graphisme",null,null,null,null,null,0,0,0]
["Frais d'infographie",null,null,null,null,null,0,0,0]
["Frais d'impression",null,null,null,null,null,0,0,{"$f":"+C32*D32*E32*F32","v":0}]
["Autres frais de matériel (à spécifier)",null,null,null,null,null,0,0,0]
["Autres frais de matériel (à spécifier)",null,null,null,null,null,0,0,0]
["Autres dépenses liées à la réalisation du projet "]
["Location de salle ou d'espace de kiosque incluant le matériel audiovisuel",null,null,null,null,null,{"$f":"0.14975*(C36*D36*E36*F36)","v":0},{"$f":"+C36*D36*E36*F36","v":0},{"$f":"+C36*D36*E36*F36","v":0}]
["Location d'équipements",null,null,null,null,null,{"$f":"0.14975*(C37*D37*E37*F37)","v":0},{"$f":"+C37*D37*E37*F37","v":0},{"$f":"+C37*D37*E37*F37","v":0}]
["Autres dépenses (à spécifier)",null,null,null,null,null,0,{"$f":"+C38*D38*E38*F38","v":0},0]
["Dépenses liées à l'administration du projet par le promoteur"]
["Salaire de base du chargé de projets",null,null,null,null,null,null,{"$f":"+C40*D40*E40*F40","v":0},{"$f":"+C40*D40*E40*F40","v":0}]
["Remboursement de 50 % des taxes admissibles",null,null,null,null,null,null,{"$f":"0.5*SUM(G5:G40)","v":0},{"$f":"0.5*SUM(G5:G40)","v":0}]
["Total partiel",null,null,null,null,null,null,{"$f":"SUM(H5:H41)","v":0},{"$f":"SUM(I5:I41)","v":0}]
["Frais d'administration (maximum 10 % du montant admissible)",null,null,null,null,null,null,{"$f":"+H42*0.1","v":0},{"$f":"+I42*0.1","v":0}]
["Total",null,null,null,null,null,null,{"$f":"H42+H43","v":0},{"$f":"I42+I43","v":0}]

{"sheet":"Formation","index":5,"n_rows":56,"n_cols":9,"rows_kept":56,"cut":false,"hidden":false,"merged":[[0,0,0,8]]}
["Budget de la demande de subvention - Titre du projet"]
[]
["Nature de la dépense","Description de la dépense","Coût unitaire","Unité","Unité","Unité","Taxes (100 % des taxes)","Montant demandé","Montant proposé"]
["Élaboration ou adaptation"]
["Honoraires professionnels pour l'élaboration du contenu de la formation ",null,null,null,null,null,{"$f":"0.14975*(C5*D5*E5*F5)","v":0},{"$f":"+C5*D5*E5*F5","v":0},{"$f":"+C5*D5*E5*F5","v":0}]
["Honoraires professionnels pour l'adaptation de la formation ",null,null,null,null,null,0,{"$f":"+C6*D6*E6*F6","v":0},{"$f":"+C6*D6*E6*F6","v":0}]
["Honoraires professionnels pour l'établissement des points d'ancrage avec le profil de compétences et les outils afférents",null,null,null,null,null,0,0,{"$f":"+C7*D7*E7*F7","v":0}]
["Honoraires professionnels pour diffusion (groupe pilote)",null,null,null,null,null,0,0,{"$f":"+C8*D8*E8*F8","v":0}]
["Autres honoraires professionnels (à spécifier)",null,null,null,null,null,0,0,{"$f":"+C9*D9*E9*F9","v":0}]
["Autres honoraires professionnels (à spécifier)",null,null,null,null,null,0,0,{"$f":"+C10*D10*E10*F10","v":0}]
["Salaires compensatoires des experts pour l'élaboration ou l'adaptation",null,null,null,null,null,null,0,{"$f":"+C11*D11*E11*F11","v":0}]
["Salaire de base des participants (groupe pilote)",null,null,null,null,null,null,0,0]
["Diffusion"]
["Honoraires professionnels pour la diffusion de la formation",null,null,null,null,null,{"$f":"0.14975*(C14*D14*E14*F14)","v":0},{"$f":"+C14*D14*E14*F14","v":0},{"$f":"+C14*D14*E14*F14","v":0}]
["Honoraires professionnels pour le coaching",null,null,null,null,null,{"$f":"0.14975*(C15*D15*E15*F15)","v":0},{"$f":"+C15*D15*E15*F15","v":0},0]
["Salaire de base des participants ",null,null,null,null,null,null,{"$f":"+C16*D16*E16*F16","v":0},0]
["Déplacement"]
["Déplacement des experts pour l'élaboration ou l'adaptation",null,null,null,null,null,null,{"$f":"+C18*D18*E18*F18","v":0},{"$f":"+C18*D18*E18*F18","v":0}]
["Déplacement du formateur",null,null,null,null,null,null,{"$f":"+C19*D19*E19*F19","v":0},{"$f":"+C19*D19*E19*F19","v":0}]
["Déplacement des participants (groupe pilote)",null,null,null,null,null,null,0,0]
["Déplacement des participants (diffusion)",null,null,null,null,null,null,{"$f":"+C21*D21*E21*F21","v":0},{"$f":"+C21*D21*E21*F21","v":0}]
["Déplacement du chargé de projets",null,null,null,null,null,null,0,0]
["Autres frais de déplacement (à spécifier)",null,null,null,null,null,{"$f":"0.14975*(C23*D23*E23*F23)","v":0},0,0]
["Autres frais de déplacement (à spécifier)",null,null,null,null,null,0,0,0]
["Hébergement"]
["Hébergement des experts pour l'élaboration ou l'adaptation",null,null,null,null,null,{"$f":"0.14975*(C26*D26*E26*F26)","v":0},{"$f":"+C26*D26*E26*F26","v":0},{"$f":"+C26*D26*E26*F26","v":0}]
["Hébergement du formateur",null,null,null,null,null,0,0,{"$f":"+C27*D27*E27*F27","v":0}]
["Hébergement des participants (groupe pilote)",null,null,null,null,null,0,0,0]
["Hébergement des participants (diffusion)",null,null,null,null,null,0,0,{"$f":"+C29*D29*E29*F29","v":0}]
["Hébergement du chargé de projets",null,null,null,null,null,0,0,0]
["Autres frais d'hébergement (à spécifier)",null,null,null,null,null,0,0,0]
["Matériel didactique"]
["Matériel didactique (à spécifier)",null,null,null,null,null,{"$f":"0.14975*(C33*D33*E33*F33)","v":0},{"$f":"+C33*D33*E33*F33","v":0},{"$f":"+C33*D33*E33*F33","v":0}]
["Révision linguistique",null,null,null,null,null,0,0,0]
["Graphisme",null,null,null,null,null,0,0,0]
["Frais d'infographie",null,null,null,null,null,0,0,0]
["Frais d'impression",null,null,null,null,null,0,0,{"$f":"+C37*D37*E37*F37","v":0}]
["Autres frais de matériel didactique (à spécifier)",null,null,null,null,null,0,0,{"$f":"+C38*D38*E38*F38","v":0}]
["Autres frais de matériel didactique (à spécifier)",null,null,null,null,null,0,0,0]
["Autres frais de matériel didactique (à spécifier)",null,null,null,null,null,0,0,0]
["Autres dépenses liées à la réalisation du projet "]
["Location de salle incluant le matériel audiovisuel",null,null,null,null,null,{"$f":"0.14975*(C42*D42*E42*F42)","v":0},{"$f":"+C42*D42*E42*F42","v":0},{"$f":"+C42*D42*E42*F42","v":0}]
["Frais d'utilisation d'une formation en ligne",null,null,null,null,null,0,{"$f":"+C43*D43*E43*F43","v":0},0]
["Frais de tests de classement",null,null,null,null,null,0,{"$f":"+C44*D44*E44*F44","v":0},0]
["Location d'équipements",null,null,null,null,null,0,{"$f":"+C45*D45*E45*F45","v":0},0]
["Honoraires professionnels d'un interprète pour la formation de personnes malentendantes",null,null,null,null,null,{"$f":"0.14975*(C46*D46*E46*F46)","v":0},{"$f":"+C46*D46*E46*F46","v":0},0]
["Honoraires professionnels d’un accompagnateur pour la formation de personnes malentendantes",null,null,null,null,null,0,0,0]
["Les frais encourus pour l’adaptation du matériel\npédagogique selon la nature du handicap",null,null,null,null,null,{"$f":"0.14975*(C48*D48*E48*F48)","v":0},{"$f":"+C48*D48*E48*F48","v":0},{"$f":"+C48*D48*E48*F48","v":0}]
["Autres dépenses liées à la réalisation du projet (à spécifier)",null,null,null,null,null,0,0,0]
["Dépenses liées à l'administration du projet par le promoteur"]
["Salaire de base du chargé de projets",null,null,null,null,null,null,{"$f":"+C51*D51*E51*F51","v":0},{"$f":"+C51*D51*E51*F51","v":0}]
["Promotion (à spécifier)",null,null,null,null,null,{"$f":"0.14975*(C52*D52*E52*F52)","v":0},{"$f":"+C52*D52*E52*F52","v":0},0]
["Remboursement de 50 % des taxes admissibles",null,null,null,null,null,null,{"$f":"0.5*SUM(G5:G52)","v":0},{"$f":"0.5*SUM(G5:G52)","v":0}]
["Total partiel",null,null,null,null,null,null,{"$f":"SUM(H5:H53)","v":0},{"$f":"SUM(I5:I53)","v":0}]
["Frais d'administration (maximum 10 % du montant admissible)",null,null,null,null,null,null,{"$f":"+H54*0.1","v":0},{"$f":"+I54*0.1","v":0}]
["Total",null,null,null,null,null,null,{"$f":"H54+H55","v":0},{"$f":"I54+I55","v":0}]

{"sheet":"Compagnon independant","index":6,"n_rows":9,"n_cols":9,"rows_kept":9,"cut":false,"hidden":false,"merged":[[0,0,0,8]]}
["Budget de la demande de subvention "]
[]
["Activiés du Cadre","Description de la dépense","Coût unitaire","Unité","Unité","Unité","Taxes (100 % des taxes)","Montant demandé","Montant proposé"]
["Honoraires professionnels",null,null,null,null,null,{"$f":"0.14975*(C4*D4*E4*F4)","v":0},{"$f":"+C4*D4*E4*F4","v":0},{"$f":"+C4*D4*E4*F4","v":0}]
["Frais de déplacements",null,null,null,null,null,null,{"$f":"+C5*D5*E5*F5","v":0},{"$f":"+C5*D5*E5*F5","v":0}]
["Frais de repas ",null,null,null,null,null,0,0,0]
["Frais d'hébergement",null,null,null,null,null,0,0,0]
["Autres",null,null,null,null,null,0,0,0]
["Total",null,null,null,null,null,null,{"$f":"SUM(H4:H8)","v":0},{"$f":"SUM(I4:I8)","v":0}]

{"sheet":"SOMMAIRE","index":7,"n_rows":10,"n_cols":3,"rows_kept":10,"cut":false,"hidden":false,"merged":[[0,0,0,2]]}
["Budget de la demande de subvention - Sommaire - Titre du projet"]
[]
["Activiés du Cadre","Montant demandé","Montant proposé"]
["Analyse de profession",{"$f":"'Analyse BES Études faisabilité'!H33","v":0},{"$f":"'Analyse BES Études faisabilité'!I33","v":0}]
["Norme professionnelle, stratégies PAMT ou hors PAMT",{"$f":"'Norme, PAMT ou hors PAMT'!H50","v":0},{"$f":"'Norme, PAMT ou hors PAMT'!I50","v":0}]
["RCMO",{"$f":"RCMO!H53","v":0},{"$f":"RCMO!I53","v":0}]
["Promotion",{"$f":"'Promotion Normes'!H44","v":0},{"$f":"'Promotion Normes'!I44","v":0}]
["Formation - Cadre",{"$f":"Formation!H55","v":0},{"$f":"Formation!I55","v":0}]
["Compagnon Indépendant",{"$f":"'Compagnon independant'!H9","v":0},{"$f":"'Compagnon independant'!I9","v":0}]
["Total",{"$f":"SUM(B4:B9)","v":0},{"$f":"SUM(C4:C9)","v":0}]

{"sheet":"Instructions","index":8,"n_rows":39,"n_cols":1,"rows_kept":39,"cut":false,"hidden":false,"merged":[[28,0,28,10],[24,0,24,10],[32,0,32,10],[29,0,29,10],[14,0,14,10],[13,0,13,10],[23,0,23,10],[27,0,27,10],[25,0,25,10],[26,0,26,10],[15,0,15,10],[17,0,17,10],[18,0,18,10],[19,0,19,10],[21,0,21,10],[20,0,20,10],[22,0,22,10],[0,0,0,10],[1,0,1,10],[9,0,9,10],[11,0,11,10],[12,0,12,10],[3,0,3,10],[5,0,5,10],[6,0,6,10],[7,0,7,10],[39,0,39,10],[30,0,30,10],[33,0,33,10],[36,0,36,10],[37,0,37,10],[38,0,38,10],[34,0,34,10],[35,0,35,10],[31,0,31,10]]}
["Budget de la demande de subvention - Évolution - Normes professonnelles"]
[" Instructions"]
[]
["1. Utilisation des onglets "]
[]
["A. Choisir l'onglet approprié en fonction de l'activité visée par la demande de subvention."]
["B. Compléter dans l'onglet approprié le budget de la demande de subvention. Pour l'onglet FORMATION, si leprojet comprend la réalisation de plusieurs activités de formation, il faut compléter un budget distinct par formation. "]
["C. Les montants demandés et proposés sont reportés automatiquement dans l'onglet SOMMAIRE."]
[]
["1. Barèmes du programme "]
[]
["Honoraires professionnels des consultants et des experts : Selon la complexité des travaux à accomplir, le remboursement des dépenses pourrait atteindre 150 $ l’heure."]
["Salaire de base des participants à une formation ou à une évaluation : jusqu’à un maximum de 25 $ l’heure par participant."]
["Frais de déplacement et d’hébergement: Selon ce qui est le plus économique, le domicile ou le lieu de travail est déterminé comme point de départ de ce déplacement (jusqu’à 8 000 km : 0,545 $/km et plus de 8 000 km : 0,485 $/km)."]
[]
["2. Instructions pour compléter le budget de la demande de subvention"]
[]
["Colonne Nature de la dépense"]
["Les dépenses admissibles sont présentées par catégorie. Il est important de ne pas changer l'appellation des postes budgétaires."]
["Veuillez compléter seulement les lignes pour les postes budgétaires visés par votre demande de subvention. "]
[]
["Colonne Description de la dépense"]
["Décrire le détail des calculs en utilisant les unités de mesure appropriées. Voici des exemples:"]
[]
["Honoraires professionnels : 90 $/h x 16 h x 2 groupes"]
["Salaire de base des participants:13,10 $/h x 16 h x 12 participants"]
["Déplacement du formateur: 0,545 $/km x 600 km x 2 déplacements"]
[]
["Colonne Coût unitaire"]
["Inscrire le premier facteur de la multiplication présenté dans la colonne Description de la dépense pour chaque catégorie de dépense (Ex:  taux horaire des formateurs ou des participants, coût/participant pour le matériel didactique, coût/km pour les frais de déplacement, le coût/jour pour les frais d'hébergement et la location de salle, etc.). C'est le coût unitaire en $."]
[]
["Colonnes Unité"]
["Inscrire les autres facteurs de multiplication. Pour les cases vides, inscrire le chiffre 1."]
[]
["Colonne Taxes (100 % des taxes)"]
["Les taxes sont calculées automatiquement pour les dépenses taxables. La portion remboursable des taxes (50 %) est calculée automatiquement à la ligne Remboursement de 50 % des taxes admissibles."]
[]
["Colonne Montant demandé"]
["Le montant demandé est calculé automatiquement en tenant compte du taux de remboursement applicable."]